Cogmind - Beta 9.2 @@@ ROGUE MODE // 2019.12.10 @ 21:42:37 Player: fartblaster Result: Destroyed by G-47 Trooper with Particle Gun Performance ------------- Evolutions (0) 0 Regions Visited (1) 200 Robots Destroyed (7) 35 Value Destroyed (161) 161 Prototype IDs (0) 0 Alien Tech Used (0) 0 Bonus (0) 0 TOTAL SCORE: 396 Bonus ------- None Cogmind --------- Core Integrity 0/250 Matter 283/300 Energy 98/100 System Corruption 0% Temperature Cool (15) Movement Core (50) Location -10/Materials Parts ------- > --- POWER (1) -------- (None) > --- PROPULSION (2) --- (None) > --- UTILITY (2) ------ Utility Shielding > --- WEAPON (2) ------- (None) > --- INVENTORY (4) ---- Ion Engine Aluminum Leg Peak State ------------ > --- POWER ------------ Light Nuclear Core > --- PROPULSION ------- Improved Aluminum Leg Improved Aluminum Leg > --- UTILITY ---------- Heat Sink Utility Shielding > --- WEAPON ----------- EM Pulse Gun Assault Rifle > --- INVENTORY -------- Ion Engine Aluminum Leg EM Pulse Gun EM Pulse Gun [Rating: 11] Favorites ----------- Power Light Nuclear Core Engine Ion Engine Power Core Light Nuclear Core Propulsion Aluminum Leg Treads Light Treads Leg Aluminum Leg Utility Heat Sink Device Heat Sink Protection Utility Shielding Weapon EM Pulse Gun Energy Gun EM Pulse Gun Ballistic Gun Assault Rifle Build | -11 -10 ------- Run | Scr Mat Slots Evolved . | . . Power . | . . Propulsion . | . . Utility . | . . Weapon . | . . Parts Attached 14 | 6 8 Power 2 | 1 1 Engine 1 | 1 . Core 1 | . 1 Reactor . | . . Propulsion 6 | 3 3 Treads 1 | 1 . Leg 5 | 2 3 Wheel . | . . Hover . | . . Flight . | . . Utility 2 | . 2 Device 1 | . 1 Storage . | . . Processor . | . . Hackware . | . . Protection 1 | . 1 Artifact . | . . Weapon 4 | 2 2 Energy Gun 3 | 1 2 Energy Cannon . | . . Ballistic Gun 1 | 1 . Ballistic Cannon . | . . Launcher . | . . Special Weapon . | . . Impact Weapon . | . . Slashing Weapon . | . . Piercing Weapon . | . . Special Melee Weapon . | . . Unidentified Prototypes . | . . Parts Lost 8 | . 8 Power 1 | . 1 Propulsion 2 | . 2 Utility 1 | . 1 Weapon 4 | . 4 Highest Loss Streak 8 | . 8 Average Slot Usage (%) 95 | . 95 Engine 4 | . 4 Core 8 | . 8 Leg 26 | . 26 Device 13 | . 13 Protection 12 | . 12 Energy Gun 13 | . 13 Ballistic Gun 13 | . 13 Naked Turns . | . . Heaviest Build 11 | 9 11 Greatest Support 26 | 20 26 Greatest Overweight (x) 2 | . 2 Average Overweight (x) . | . . Largest Inventory Capacity 4 | 4 4 Average Capacity 4 | 4 4 Most Carried 4 | 3 4 Average Carried 3 | 1 3 Final Capacity 4 | 4 4 Final Carried 3 | 3 2 Class Distribution -------------------- 100% | Mutant Dominant Class ---------------- Mutant | -10/Materials Resources | -11 -10 ----------- Run | Scr Mat Matter Collected 337 | 174 163 Remotely . | . . Salvage Created 218 | . 218 Parts 16 | . 16 Haulers Intercepted . | . . Recyclers Shooed 1 | . 1 Parts Field Recycled . | . . Retrieved Matter . | . . Parts Self-Destructed . | . . Prevented . | . . Kills | -11 -10 ------- Run | Scr Mat Combat Hostiles Destroyed 6 | . 6 Guns 6 | . 6 Classes Destroyed 3 | . 3 Watcher 1 | . 1 Swarmer 3 | . 3 Grunt 3 | . 3 Best Kill Streak 4 | . 4 Combat Bots Only 3 | . 3 Max Kills in Single Turn 1 | . 1 Gunslinging . | . . Exploded . | . . Melee . | . . Uniques/NPCs Destroyed . | . . Combat | -11 -10 -------- Run | Scr Mat Damage Taken 851 | . 851 Core 254 | . 254 Absorbed by Shields . | . . Core Remaining (%) 100 | 100 . Volleys Fired 25 | 1 24 Largest 2 | 1 2 Hottest 80 | 20 80 Shots Fired 42 | 1 41 Gun 42 | 1 41 Cannon . | . . Launcher . | . . Special . | . . Kinetic 18 | 1 17 Thermal . | . . Explosive . | . . Electromagnetic 24 | . 24 Robot Hit Streak 10 | 1 10 Robot Miss Streak 2 | . 2 Penetration Max . | . . Secondary Targets 1 | . 1 Max Gunslinging Chain 1 | . 1 Shots Hit Robots 30 | 1 29 Core Hits 11 | . 11 Critical Hits . | . . Critical Kills . | . . Critical Parts Destroyed . | . . Melee Attacks . | . . Impact . | . . Slashing . | . . Piercing . | . . Sneak Attacks . | . . Combat Hostiles . | . . Follow-up Attacks . | . . Damage Inflicted 414 | 14 400 Guns 414 | 14 400 Cannons . | . . Explosions . | . . Melee . | . . Ramming . | . . Kinetic 193 | 14 179 Thermal . | . . Explosive . | . . Electromagnetic 221 | . 221 Impact . | . . Slashing . | . . Piercing . | . . Highest Corruption . | . . Average Corruption . | . . Corruption Purged . | . . Overload Shots . | . . Overflow Damage . | . . Projectiles . | . . Explosions . | . . Melee . | . . Knockbacks . | . . Impact . | . . Kinetic . | . . Secondary . | . . Self-Inflicted Damage . | . . Shots . | . . Rammed . | . . Targets Rammed . | . . Kicked . | . . Crushed . | . . Highest Temperature 24 | . 24 Average Temperature 12 | . 12 Received Heat Transfer 393 | . 393 Siege Activations . | . . Robots Corrupted . | . . Combat Hostiles . | . . Parts Fried . | . . Impact Corruptions . | . . Robots Melted . | . . Combat Hostiles . | . . Parts Melted . | . . Heat Transferred . | . . Parts Sabotaged . | . . Parts Stolen . | . . Parts Stripped . | . . Power Chain Reactions . | . . Missiles Intercepted . | . . Alert | -11 -10 ------- Run | Scr Mat Peak Influence 80 | . 80 Average Influence 41 | . 48 Maximum Alert Level . | . . Low Security (%) 100 | 100 100 Level 1 . | . . Level 2 . | . . Level 3 . | . . Level 4 . | . . Level 5 . | . . High Security . | . . Max Security . | . . Squads Dispatched 1 | . 1 Investigation 1 | . 1 Extermination . | . . Reinforcement . | . . Assault . | . . Garrison . | . . Intercept . | . . Construction Impeded . | . . Haulers Reinforced . | . . Stealth | -11 -10 --------- Run | Scr Mat Distress Signals 1 | . 1 Communications Jammed . | . . Distress Signals . | . . Times Spotted 19 | . 19 Peak Tracking Total 7 | . 7 Tactical Retreats 1 | . 1 Traps | -11 -10 ------- Run | Scr Mat Traps Triggered 2 | . 2 Indirectly . | . . Trap Hack Attempts . | . . Triggered . | . . Disarmed . | . . Reprogrammed . | . . Reused . | . . Traps Extracted . | . . Installed . | . . Triggered . | . . Machines | -11 -10 ---------- Run | Scr Mat Machines Disabled . | . . Max in Single Turn . | . . Machines Sabotaged . | . . Garrisons Compromised . | . . Overloaded Fab Kills . | . . Fab Network Shutdowns . | . . Hacking | -11 -10 --------- Run | Scr Mat Machines Accessed . | . . Terminals . | . . Fabricators . | . . Repair Stations . | . . Recycling Units . | . . Scanalyzers . | . . Garrison Access . | . . Total Hacks . | . . Successful . | . . Failed . | . . Catastrophic . | . . Database Lockouts . | . . Manual . | . . Terminals . | . . Fabricators . | . . Repair Stations . | . . Recycling Units . | . . Scanalyzers . | . . Garrison Access . | . . Terminal Hacks . | . . Fabricator Hacks . | . . Repair Station Hacks . | . . Recycling Unit Hacks . | . . Scanalyzer . | . . Garrison Access Hacks . | . . Unauthorized Hacks . | . . Terminals . | . . Fabricators . | . . Repair Stations . | . . Recycling Units . | . . Scanalyzers . | . . Garrison Access . | . . Data Cores Recovered . | . . Used . | . . Hacking Detections . | . . Full Trace Events . | . . Feedback Events . | . . Feedback Blocked . | . . Robot Schematics Acquired . | . . Robots Built . | . . Matter . | . . Time . | . . Total Robot Build Rating . | . . Part Schematics Acquired . | . . Parts Built . | . . Matter . | . . Time . | . . Total Part Build Rating . | . . Parts Repaired . | . . Time . | . . Parts Recycled . | . . Recycled Matter . | . . Retrieved Matter . | . . Retrieved Components . | . . Parts Scanalyzed . | . . Part Schematics Acquired . | . . Parts Damaged . | . . Bothacking | -11 -10 ------------ Run | Scr Mat Used RIF Installer . | . . Robots Hacked . | . . Non-combat . | . . Combat . | . . Robot Hacks Applied . | . . Relay Couplers Released . | . . Robots Rewired . | . . Allies Hacked . | . . Hacks Repelled . | . . Allies | -11 -10 -------- Run | Scr Mat Total Allies . | . . Largest Group . | . . Highest-Rated Group . | . . Highest-Rated Ally . | . . Total Orders . | . . Ally Attacks . | . . Total Damage . | . . Kills . | . . Allies Corrupted . | . . Allies Melted . | . . Intel | -11 -10 ------- Run | Scr Mat Robot Analysis Total . | . . Derelict Logs Recovered . | . . Drone Launches . | . . Drone Recoveries . | . . Exploration | -11 -10 ------------- Run | Scr Mat Turns Passed 624 | 87 537 Spaces Moved 439 | 62 377 Core 23 | 4 19 Treads 6 | 6 . Legs 410 | 52 358 Wheels . | . . Hover . | . . Flight . | . . Fastest Speed 50 | 50 50 Average Speed 117 | 119 117 Slowest Speed 160 | 160 150 Overloaded Moves . | . . Propulsion Burnouts . | . . Robots Hopped . | . . Cave-ins Triggered . | . . Exploration Rate (%) 31 | 3 60 Regions Visited 1 Branch Regions . Pre-discovered Areas . | . . Known Exits Taken . | . . Unknown Exits Taken 1 | 1 . Scrap Searched . | . . Spaces Dug . | . . Terrain Destroyed . | . . Melee . | . . Projectile . | . . AOE . | . . Actions | -11 -10 --------- Run | Scr Mat Total 502 | 71 431 Wait 16 | . 16 Move 438 | 61 377 Hop . | . . Pick Up 4 | 2 2 Fast Attach 8 | 6 2 Attach 2 | . 2 Detach 1 | 1 . Swap 4 | . 4 Drop 4 | . 4 Fire 25 | 1 24 Melee . | . . Ram . | . . Kick . | . . Crush . | . . Escape Stasis . | . . Rewire . | . . Trap . | . . Miscellaneous . | . . Route ------- -11/Scrapyard -10/Materials (discovered 2 exits: [*Mat] / [*Min]) History --------- Turn | Location | Event 10 | -11/Scrapyard | Discovered new exit (range 15) 88 | -11/Scrapyard | Entered Materials 316 | -10/Materials | Build established: Mutant 419 | -10/Materials | Discovered new exit (range 4) 527 | -10/Materials | Discovered new exit (range 10) 609 | -10/Materials | Core integrity fell below 50% 617 | -10/Materials | Core integrity fell below 20% 625 | -10/Materials | Destroyed by G-47 Trooper with Particle Gun Last Messages --------------- 00596_ Imp. Aluminum Leg destroyed. 00601_ G-34 Mercenary destroyed. 00601_ Switching to secondary target: G-34 Mercenary. 00602_ EM Pulse Gun destroyed. 00607_ K-01 Serf cleans the Matter Pump. 00608_ U-05 Engineer lays Concrete. 00608_ K-01 Serf collects debris. 00608_ Imp. Aluminum Leg destroyed. 00610_ K-01 Serf cleans the Matter Pump. 00610_ U-05 Engineer lays Concrete. 00612_ K-01 Serf cleans the Nuclear Reactor. 00612_ EM Pulse Gun destroyed. 00613_ U-05 Engineer destroyed. 00613_ K-01 Serf collects debris. 00616_ Heat Sink destroyed. 00617_ Lgt. Nuclear Core destroyed. 00617_ K-01 Serf collects debris. 00622_ K-01 Serf cleans the Nuclear Reactor. 00622_ Processing Tank disabled. 00624_ K-01 Serf collects debris. Map ----- +----------------------------------------------------+ | """ + # #????????????????????? | | ###+## """ # #????????????????????? | | #+##### # """ # """ #????????????????????? | | #??# # """ # """ #????????????????????? | | #??# # """ #! """ #????????????????????? | | "" #??# # """ # #????????????????????? | | "" #??# # # """ #????????????????????? | | "" #??# # + """ #????????????????????? | | * #??# # # """ #????????????????????? | | [=%############### # #??##+###????????????? | | #/## ######### ########## #????????????? | | = # # ????????????? | | # + ???????????? | | # # "" ????????????? | | #### # # T" """ ????????????? | | ???# ############# "" """ #?????????????? | | ???# =%* ! """ #?????????????? | | ??# ! %! "" #?????????????? | | ??# u """ #?????????????? | | ??# """ """ k #?????????????? | | ??# """ """ """ #?????????????? | | ??# """ """ """ #?????????????? | | ??# """ || +?????????????? | | ??# ka |] #?????????????? | | ??#* k | #?????????????? | | ??# ############# """ @ #?????????????? | | ??# #???????????# """ #?????????????? | | ### #???????????# """ " " ??????????? | | #???????????# "R" ????????? | | #???????????# """ #????????? | | #???????????# """ ######+##### #????????? | | #???????????# """ #?????????????????????? | | + !!!??????# """ #?????????????????????? | | #???????????# #?????????????????????? | | ### #???????????# g #?????????????????????? | | ??? #???????????? ?"" g #?????????????????????? | | #?? #???????????????"" #?????????????????????? | | #?? #????????????????" #?????????????????????? | | #?? #???????????????? ??????????????????????? | | #?# #????????????????? ??????????????????????? | | #?# #????????????????? ??????????????????????? | | #?# #??????????????????????????????????????????? | | #?# #??????????????????????????????????????????? | | #?# #??????????????????????????????????????????? | | #?# #??????????????????????????????????????????? | | ### #??????????????????????????????????????????? | | # #??????????????????????????????????????????? | | #??????????????????????????????????????????? | | #??????????????????????????????????????????? | | #??????????????????????????????????????????? | +----------------------------------------------------+ Best States ------------- Heat Dissipation 35 Energy Generation 14 Energy Capacity 250 Matter Stores 283 Matter Capacity 300 Sight Range 16 Terrain Scan Density 10 Utility Shielding 33 Evasion (%) 50 Recoil Reduction 1 Item Schematics ----------------- None Robot Schematics ------------------ None Fabricated ------------ Nothing Alien Tech Used ----------------- None Achievements -------------- None Challenges ------------ None Game ------ Seed ThrusterLayeredManipulator Manual? 0 Play Time 00:06:16 Cumulative 16.0 hours Start 2019.12.10 @ 21:37:15 End 2019.12.10 @ 21:42:37 Sessions 1 Manual Loads 0 Difficulty Rogue Special Mode None Game No. 47 Rogue 47 Adventurer 0 Explorer 0 Win Type - Total 0 Types 0/0/0/0/0/0/0 Lore% 7 Gallery% 20 Achievement% 13 Wizard Run 0 Options --------- ASCII 0 Keyboard 1 Movement Numpad Keybinds 0 Fullscreen 1 Font 18/SmallcapsGlow Map View 76x50 Tactical HUD 1 Map Filters NONE Filters NONE Steam 1 RUN: 63c5c272-73f2-429d-9dba-d6dca6faa08b